[Event "1st Henriquez Urena Memorial 2022"]
[Site "Santo Domingo"]
[Date "2022.09.18"]
[Round "4.6"]
[White "Ferreira Fernandez, Sergio"]
[Black "Martinez Castillo, Julio Antonio"]
[Result "0-1"]
[ECO "E02"]
[WhiteElo "2119"]
[BlackElo "2122"]
[Annotator "TA"]
[PlyCount "100"]
[EventDate "2022.09.16"]
[EventType "swiss"]
[EventCountry "DOM"]
[SourceTitle "playchess.com"]
[Source "ChessBase"]
[SourceQuality "1"]
[TimeControl "5400+30"]

{[%evp 17,100,46,68,59,75,64,64,62,100,61,52,46,44,30,41,0,12,0,48,49,51,50,22,-14,-11,-22,-6,-5,-9,-6,8,10,12,2,12,-40,43,-17,-18,-50,-65,-64,-62,-66,-70,-118,-112,-177,-156,-272,-281,-337,-321,-320,-302,-327,-321,-310,-266,-1333,-1325,-1255,-1235,-1228,-581,-570,-564,-553,-536,-29970,-29971,-29970,-29971,-6506,-6422,-2995,-2758,-29974,-29975,-29989,-29990,-29990,-29991,-29993,-29994]} 1. d4 {[%emt 0:01:49]} e6 {[%emt 0:00:47]} 2. c4 {[%emt 0:00:02]} d5 {[%emt 0:00:12]} 3. Nf3 Nf6 {[%emt 0:00:39]} 4. g3 {[%emt 0:00:05]} Be7 {[%emt 0:00:30]} 5. Bg2 {[%emt 0:00:30]} O-O {[%emt 0:00:14]} 6. O-O {[%emt 0:00:03]} c6 {[%emt 0:00:35]} 7. Nc3 {[%emt 0:00:55]} Nbd7 {[%emt 0:01:22]} 8. Qd3 {[%emt 0:06:12] now scores much better than the old 8.b3.} dxc4 {[%emt 0:07:47]} 9. Qxc4 {[%emt 0:00:02]} Nb6 {[%emt 0:00:55]} 10. Qb3 {[%emt 0:00:22] E02: Open Catalan: 5 Qa4+.} a5 {[%emt 0:05:21]} 11. a3 {[%emt 0:00:43]} Nbd5 {[%emt 0:04:30] [#]} 12. Rd1 $146 {[%emt 0:05:31] White is slightly better.} ({Predecessor:} 12. Ne5 Nxc3 13. bxc3 a4 14. Qc2 Qa5 15. e4 Rd8 16. Bb2 Bd7 17. c4 Be8 18. c5 Qc7 {0-1 (36) Paukert,J (1917)-Ptacnik,P (1705) Zlate Hory 2006}) 12... Qb6 {[%emt 0:06:36]} 13. Qxb6 {[%emt 0:21:54]} Nxb6 {[%emt 0:01:27]} 14. e4 {[%emt 0:00:02]} c5 {[%emt 0:09:56]} 15. dxc5 {[%emt 0:16:09]} Bxc5 {[%emt 0:00:07]} 16. h3 {[%emt 0:00:03]} Bd7 {[%emt 0:03:13]} 17. Ne5 {[%emt 0:00:10]} Be8 {[%emt 0:02:44]} (17... Ba4 $11 {is superior.} 18. Nxa4 Nxa4) 18. Nd3 $14 {[%emt 0:08:48]} Bd4 {[%emt 0:17:20]} 19. Ne2 $1 {[%emt 0:00:07]} Ba4 {[%emt 0:01:20]} 20. Rd2 {[%emt 0:14:34]} (20. Re1 $5 {[%cal Re2d4]} Bc2 21. Nxd4 Bxd3 22. Bf4 $14) 20... Nc4 {[%emt 0:15:22] [#] Strongly threatening ...Rad8.} 21. Nxd4 {[%emt 0:00:06]} Rad8 {[%emt 0:00:30]} 22. Re2 {[%emt 0:12:20][%cal Od3c5] aiming for Nc5!} Rxd4 {[%emt 0:00:23]} 23. Nc5 {[%emt 0:00:20][%csl LRa4,LRb7]} Rd1+ {[%emt 0:01:22]} 24. Kh2 {[%emt 0:00:06]} Bc6 {[%emt 0:00:48]} 25. Rc2 {[%emt 0:08:28]} Ne5 {[%emt 0:05:48]} 26. f4 {[%emt 0:00:34]} (26. b4 $11) 26... Ned7 {[%emt 0:01:53]} ({Better is} 26... Nd3 $15) 27. Nxd7 {[%emt 0:00:19]} (27. Bf3 $1 $14 Rf1 28. Nxd7 Bxd7 29. Kg2) 27... Nxd7 $11 {[%emt 0:00:36][%cal Bf6d7,Bd7b6,Bb6d5][%mdl 32]} 28. e5 {[%emt 0:03:34] Against Nf6} Bxg2 {[%emt 0:00:37]} 29. Kxg2 {[%emt 0:00:01]} Nb6 $1 {[%emt 0:00:32] Black is more active.} 30. b4 {[%emt 0:00:40]} a4 {[%emt 0:02:17]} 31. Bb2 {[%emt 0:00:42] Black converts the advantage convincingly.} (31. Raa2 $15) 31... Rd3 $17 {[%emt 0:00:41]} 32. Rac1 {[%emt 0:00:37]} (32. Rf1 $17) 32... h5 {[%emt 0:00:11]} 33. g4 {[%emt 0:00:37]} (33. Rf1 $17) 33... Nd5 $19 {[%emt 0:00:14]} 34. Rf2 {[%emt 0:00:28]} hxg4 {[%emt 0:00:21]} 35. hxg4 {[%emt 0:00:02]} Ne3+ {[%emt 0:00:20]} 36. Kg1 {[%emt 0:00:55]} Rfd8 {[%emt 0:11:00] [#] Threatens to win with ...Rd1+.} ({Not} 36... Nxg4 $2 37. Rfc2 $19) ({But not} 36... Nd1 $2 37. Rh2 $19) 37. Re2 Nxg4 {[%emt 0:00:00]} 38. Rc7 $2 {[%emt 0:00:31]} (38. b5) 38... Rg3+ {[%emt 0:00:00]} 39. Kf1 {[%emt 0:00:23]} Rd1+ {[%emt 0:00:00]} 40. Re1 {[%emt 0:00:01]} Rd2 {[%emt 0:00:00]} (40... Ne3+ $142 41. Kf2 Rg2+ 42. Kxe3 Rxe1+ 43. Kd4 Rxb2 44. Rxb7 Rf2) 41. Re2 {[%emt 0:00:31]} Rf3+ {[%emt 0:00:00]} 42. Kg2 {[%emt 0:01:01]} Rdd3 {[%emt 0:00:00]} ({Stronger than} 42... Rxe2+ 43. Kxf3 Rxb2 44. Kxg4 $15) 43. Rxb7 {[%emt 0:00:12]} Rh3 {[%emt 0:00:00]} 44. Kg1 {[%emt 0:01:29]} Rd1+ {[%emt 0:00:38]} 45. Kg2 {[%emt 0:00:03]} Rh2+ {[%emt 0:00:21]} 46. Kf3 {[%emt 0:00:09]} Rf1+ {[%emt 0:00:30]} 47. Kxg4 {[%emt 0:00:01]} Rxe2 {[%emt 0:00:16] Black mates.} 48. Bd4 {[%emt 0:00:01]} Rg2+ {[%emt 0:00:35]} 49. Kh3 {[%emt 0:00:04]} Rg6 {[%emt 0:00:30][%cal Rf1h1]} 50. Kh2 {[%emt 0:00:16]} Rxf4 {[%emt 0:00:22] Weighted Error Value: White=0.58/Black=0.22 (precise)} 0-1

[Event "1st Henriquez Urena Memorial 2022"]
[Site "Santo Domingo"]
[Date "2022.09.18"]
[Round "4.7"]
[White "Subervi, Jonathan Sigfredo"]
[Black "Camacho Campusano, David Daniel"]
[Result "1/2-1/2"]
[ECO "A57"]
[WhiteElo "2124"]
[BlackElo "2230"]
[Annotator "TA"]
[PlyCount "31"]
[EventDate "2022.09.16"]
[EventType "swiss"]
[EventCountry "DOM"]
[SourceTitle "playchess.com"]
[Source "ChessBase"]
[SourceQuality "1"]
[TimeControl "5400+30"]

{[%evp 10,31,64,20,75,59,103,90,128,29,56,58,57,57,75,0,0,0,0,0,0,0,0,0]} 1. Nf3 {[%emt 0:13:08]} Nf6 {[%emt 0:00:36]} 2. d4 {[%emt 0:04:43]} c5 {[%emt 0:01:29]} 3. d5 {[%emt 0:02:01]} g6 {[%emt 0:00:33]} 4. c4 {[%emt 0:04:01]} b5 {[%emt 0:02:54]} 5. cxb5 {[%emt 0:02:35]} a6 {[%emt 0:00:11]} 6. Nc3 {[%emt 0:01:14]} Bg7 {[%emt 0:00:16] A57: Benko/Volga Gambit.} (6... axb5 $1 $11 7. Nxb5 Qa5+ 8. Nc3 Ne4) 7. e4 $16 {[%emt 0:00:10]} O-O {[%emt 0:00:15]} 8. a4 {[%emt 0:01:47]} e6 {[%emt 0:00:49] White is better.} 9. bxa6 {[%emt 0:26:46] White is more active.} (9. e5 $16 {Threatens to win with Bg5.} Ng4 10. Bf4) 9... Qa5 {[%emt 0:05:18] Strongly threatening ...Nxe4.} 10. Bd2 {[%emt 0:00:59]} Bxa6 {[%emt 0:00:56]} 11. dxe6 {[%emt 0:14:50]} fxe6 {[%emt 0:02:32] [#]} 12. e5 $146 {[%emt 0:07:01]} ({White should play} 12. Nd5 $1 $16 Qd8 13. Bxa6 Rxa6 14. Nxf6+ Qxf6 15. Bc3) ({Predecessor:} 12. Bb5 Bxb5 13. Nxb5 Qb6 14. Qe2 Nc6 15. O-O Na5 16. Bxa5 Rxa5 17. e5 Nd5 18. b3 {0-1 (59) Tarasova,V (2226)-Avila Pavas,S (2395) Chess.com INT 2021}) 12... Ng4 $11 {[%emt 0:01:04] The position is equal.} 13. Nd5 {[%emt 0:01:11]} Qd8 {[%emt 0:00:20]} 14. Bg5 {[%emt 0:00:14]} Qa5+ {[%emt 0:03:32]} 15. Bd2 {[%emt 0:01:17] The board is on fire.} Qd8 {[%emt 0:00:56]} 16. Bg5 {[%emt 0:00:39] Weighted Error Value: White=0.28 (precise) /Black=0.26 (precise)} 1/2-1/2

[Event "1st Henriquez Urena Memorial 2022"]
[Site "Santo Domingo"]
[Date "2022.09.18"]
[Round "4.10"]
[White "Lugo Matos, Richards Reynier"]
[Black "Crispin Ferreras, Darvi Abraham"]
[Result "0-1"]
[ECO "B43"]
[WhiteElo "2157"]
[BlackElo "2160"]
[Annotator "TA"]
[PlyCount "98"]
[EventDate "2022.09.16"]
[EventType "swiss"]
[EventCountry "DOM"]
[SourceTitle "playchess.com"]
[Source "ChessBase"]
[SourceQuality "1"]
[TimeControl "5400+30"]

{[%evp 17,98,31,34,0,0,0,0,0,0,14,5,-15,-8,-5,-14,-17,15,0,25,-47,-28,-27,0,-36,103,-191,-178,-185,-180,-196,-183,-246,-150,-186,-208,-211,-170,-204,-236,-277,-274,-332,-428,-506,-495,-435,-68,-54,-18,-10,339,338,327,-29969,-29967,-29944,-6632,-29992,-29993,-29995,-29986,-29986,-29987,-29985,-1412,-1349,-1335,-1335,-1139,-1304,-608,-1152,-1128,-1118,-1116,-998,-854,-828,-768,-29982,-29983,-29983,-29984]} 1. e4 {[%emt 0:04:25]} e6 {[%emt 0:03:52]} 2. Nf3 {[%emt 0:03:34]} c5 {[%emt 0:02:23]} 3. d4 {[%emt 0:02:39]} cxd4 {[%emt 0:00:19]} 4. Nxd4 {[%emt 0:00:02]} a6 {[%emt 0:00:12]} 5. Bd3 {[%emt 0:01:18]} Nf6 {[%emt 0:01:57]} 6. O-O {[%emt 0:00:28]} Qc7 {[%emt 0:00:08]} 7. Nc3 {[%emt 0:02:05]} Bc5 {[%emt 0:05:37]} 8. Nb3 {[%emt 0:14:21]} Be7 {[%emt 0:00:02]} 9. f4 {[%emt 0:01:22]} d6 {[%emt 0:00:59]} 10. Kh1 {[%emt 0:00:44] B43: Sicilian: Kan Variation: 5 Nc3.} Nbd7 {[%emt 0:01:45]} 11. Qf3 {[%emt 0:01:10]} b6 {[%emt 0:00:58]} 12. Bd2 {[%emt 0:06:01] The position is equal.} Bb7 {[%emt 0:00:24]} 13. Rae1 {[%emt 0:00:09]} h5 {[%emt 0:01:51] [#]} 14. Qg3 $146 {[%emt 0:05:25]} ({Predecessor:} 14. Nd4 g6 15. Qh3 Ng4 16. f5 gxf5 17. exf5 e5 18. f6 Ngxf6 19. Nf5 Rg8 20. Re2 {½-½ (77) Atakisi,U (2437)-Markus,R (2591) Gothenburg 2005}) 14... h4 {[%emt 0:00:18]} 15. Qh3 {[%emt 0:00:32]} ({Don't go for} 15. Qxg7 $2 Rh7 16. Qg5 Rh5 $19) 15... O-O-O {[%emt 0:01:47]} 16. a4 {[%emt 0:03:05]} Nh5 {[%emt 0:01:22][%cal Oh5g3]} 17. Kg1 {[%emt 0:00:59]} Kb8 {[%emt 0:16:14]} 18. Qf3 {[%emt 0:13:05]} (18. f5 $11) 18... Rdg8 {[%emt 0:02:26]} 19. Qe2 {[%emt 0:03:27]} g5 {[%emt 0:23:30]} 20. fxg5 {[%emt 0:10:10]} ({Don't do} 20. Bxa6 gxf4 21. Bxf4 Nxf4 22. Rxf4 Bxa6 23. Qxa6 Ne5 $14) 20... Ne5 {[%emt 0:00:16]} (20... Bxg5 $15 {keeps the upper hand.} 21. Rxf7 Qc8) 21. Bf4 $2 {[%emt 0:10:27][%mdl 8192]} (21. Bxa6 $16 {is forced if you want to stay better.} Bxg5 22. Bxb7 Qxb7 23. Bxg5 Rxg5 24. Qd2) 21... Nxf4 $19 {[%emt 0:01:10][%mdl 64] Remove Defender} 22. Rxf4 {[%emt 0:00:03]} Bxg5 {[%emt 0:00:20]} 23. Rf2 {[%emt 0:00:16]} Qc8 {[%emt 0:04:10]} 24. Kh1 {[%emt 0:01:34]} (24. h3 $142) 24... Bd8 {[%emt 0:00:19]} 25. Nd2 {[%emt 0:04:41]} h3 {[%emt 0:02:59]} 26. g3 {[%emt 0:00:56]} Bc7 {[%emt 0:00:47]} 27. Nc4 {[%emt 0:01:42]} Nxd3 {[%emt 0:00:38]} 28. Qxd3 {[%emt 0:00:51] [#]} d5 {[%emt 0:13:03]} 29. exd5 {[%emt 0:00:23]} exd5 {[%emt 0:00:01]} 30. Nxd5 {[%emt 0:01:29]} Rg5 {[%emt 0:02:06] Inhibits Rf5.} 31. Nce3 {[%emt 0:00:34]} Qe6 $2 {[%emt 0:00:27]} (31... Re8 $19 32. c4 b5) 32. c4 $15 {[%emt 0:00:25]} Re8 {[%emt 0:01:06][%cal Ob6b5]} 33. Kg1 {[%emt 0:01:42]} Rxg3+ $2 {[%emt 0:10:53][%mdl 8192]} 34. hxg3 $18 {[%emt 0:00:48]} Bxg3 {[%emt 0:00:01] [#] Hoping for ...h2+.} 35. Rf6 $4 {[%emt 0:02:12][%mdl 8192]} (35. Ng2 $1 $18 Be5 (35... Bxf2+ 36. Kxf2) 36. Rf5) 35... Qxf6 {[%emt 0:00:11]} 36. Rf1 {[%emt 0:01:16]} Qxb2 {[%emt 0:00:34][%csl Gg3][%cal Rb2h2]} 37. Qc2 {[%emt 0:00:51]} Qd4 {[%emt 0:00:28]} 38. Qd1 {[%emt 0:01:23]} Qc5 {[%emt 0:01:33]} 39. Rf3 {[%emt 0:01:29] [#]} Rxe3 $1 {[%emt 0:00:33]} 40. Nxe3 {[%emt 0:00:51]} Qxe3+ {[%emt 0:00:34]} 41. Rxe3 $19 {[%emt 0:00:20]} h2+ {[%emt 0:00:01]} 42. Kf1 {[%emt 0:00:18]} h1=Q+ {[%emt 0:00:03]} 43. Ke2 {[%emt 0:00:23]} Qg2+ {[%emt 0:01:19]} 44. Kd3 {[%emt 0:00:03]} f5 {[%emt 0:00:17] Threatens to win with ...Be4+.} 45. Re8+ {[%emt 0:00:41]} Ka7 {[%emt 0:00:03]} 46. a5 {[%emt 0:00:17]} Qc6 {[%emt 0:02:28]} 47. axb6+ {[%emt 0:00:22]} Qxb6 {[%emt 0:00:01]} 48. Re2 {[%emt 0:02:25] Prevents Qb2.} Qd6+ {[%emt 0:00:16]} 49. Kc2 {[%emt 0:00:43]} Qxd1+ {[%emt 0:00:04] Weighted Error Value: White=0.52/Black=0.58} 0-1

[Event "1st Henriquez Urena Memorial 2022"]
[Site "Santo Domingo"]
[Date "2022.09.20"]
[Round "5.1"]
[White "Cuenca Jimenez, Jose Fernando"]
[Black "Peralta, Fernando"]
[Result "*"]
[ECO "D26"]
[WhiteElo "2553"]
[BlackElo "2600"]
[Annotator "TA"]
[PlyCount "51"]
[EventDate "2022.09.16"]
[EventType "swiss"]
[EventCountry "DOM"]
[SourceTitle "playchess.com"]
[Source "ChessBase"]
[SourceQuality "1"]
[TimeControl "5400+30"]

{[%evp 20,51,22,27,31,21,60,57,53,51,56,58,58,62,58,75,64,62,64,35,32,31,33,29,31,24,36,31,27,24,26,19,28,-9]} 1. d4 {[%emt 0:00:30]} d5 {[%emt 0:00:30]} 2. c4 {[%emt 0:00:30]} dxc4 {[%emt 0:00:30]} 3. e3 {[%emt 0:00:30]} Nf6 {[%emt 0:00:30]} 4. Bxc4 {[%emt 0:00:30]} e6 {[%emt 0:00:30]} 5. Nf3 {[%emt 0:00:30]} c5 {[%emt 0:00:30]} 6. O-O {[%emt 0:00:30]} Nc6 {[%emt 0:00:30]} 7. Qe2 {[%emt 0:00:30]} cxd4 {[%emt 0:00:30]} 8. Rd1 {[%emt 0:00:30]} Be7 {[%emt 0:00:30]} 9. exd4 {[%emt 0:00:30]} O-O {[%emt 0:00:30]} 10. a3 {[%emt 0:00:30]} Nd5 {[%emt 0:00:30]} 11. Nc3 {[%emt 0:00:30] EASY} Bf6 {[%emt 0:00:30] CPLX 2.5. D26: Queen's Gambit Accepted: 4 e3 e6 5 Bxc5 c5 sidelines.} 12. Ne4 {[%emt 1:31:00] BESTDEEP} Nce7 {[%emt 0:24:25] CPLX 2.6 39 (b7-b6) (=20)} 13. Nxf6+ {[%emt 0:00:00] [#] CPLX 2.6} Nxf6 $146 {[%emt 0:00:30] RECAPT. White is slightly better.} ({Predecessor:} 13... gxf6 14. Bh6 Re8 15. Qe4 Kh8 16. Bd3 Ng6 17. g3 Bd7 18. Rac1 Bc6 19. Qe2 Rg8 {0-1 (33) Kolev,A (2540)-Bratanov,Z (2427) Sofia 2004}) 14. Bg5 {[%emt 0:00:00] CPLX 2.2} b6 {[%emt 0:17:39] CPLX 2.4 5 (Qd8-d6) (=11)} 15. Bxf6 {[%emt 0:00:00] BESTDEEP} gxf6 {[%emt 0:00:30] RECAPT} 16. Qe4 {[%emt 0:00:00] Inhibits Bb7. EASY} Nd5 $1 {[%emt 0:00:30] CPLX 3.5} 17. Bxd5 {[%emt 0:00:00] BESTDEEP} ({But not} 17. Bd3 $6 f5 18. Qe1 (18. Qe5 Bb7 $11) 18... Bb7 $15) 17... Qxd5 {[%emt 0:00:30] RECAPT} 18. Qxd5 {[%emt 0:00:00] RECAPT 2 (Qe4-f4) (=0)} (18. Qf4 {looks sharper.} Kg7 19. Rd3 Qf5 20. Qxf5 exf5 21. d5) 18... exd5 {[%emt 0:03:36] RECAPT} 19. Nd2 {CPLX 2.0 29 (Nf3-h4) (=3)} Ba6 {CPLX 2.0} 20. Nb1 {[%emt 0:00:00] BESTDEEP} Bc4 {BESTDEEP} 21. Nc3 {[%emt 0:00:00] CPLX 2.0} a5 {[%emt 0:01:30] BESTDEEP} 22. Re1 {[%emt 0:00:00] CPLX 2.0 7 (a3-a4) (=3)} Rfe8 {[%emt 0:18:28] CPLX 2.0 12 (b6-b5) (=5)} 23. Na4 {CPLX 2.2 5 (Re1xe8) (=3)} Rab8 {[%emt 0:28:52] BESTDEEP} 24. f3 {[%emt 0:00:00] next Rxe8+ is good for White. MISS-Re1xe8 3 (Re1xe8) (=3)} Re6 {[%emt 0:00:00] CPLX 2.2} 25. Kf2 {[%emt 0:00:00] BESTDEEP} Kf8 {[%emt 0:00:00] CPLX 2.2 9 (Kg8-g7) (=4)} 26. Kg1 {[%emt 0:00:00] Weighted Error Value: White=0.03 (flawless) /Black=0.05 (flawless)} *

[Event "1st Henriquez Urena Memorial 2022"]
[Site "Santo Domingo"]
[Date "2022.09.20"]
[Round "5.4"]
[White "Martinez Castillo, Julio Antonio"]
[Black "Leon Hoyos, Manuel"]
[Result "0-1"]
[WhiteElo "2122"]
[BlackElo "2491"]
[Annotator "TA"]
[PlyCount "35"]
[EventDate "2022.09.16"]
[EventType "swiss"]
[EventCountry "DOM"]
[SourceTitle "playchess.com"]
[Source "ChessBase"]
[SourceQuality "1"]
[TimeControl "5400+30"]

{[%evp 16,17,0,0]} 1. e4 {[%emt 0:13:00]} c5 {[%emt 0:00:26]} 2. c4 {[%emt 0:00:07]} Nc6 {[%emt 0:00:13]} 3. Nc3 {[%emt 0:00:03]} g6 {[%emt 0:00:11]} 4. g3 {[%emt 0:00:07]} Bg7 {[%emt 0:00:20]} 5. Bg2 {[%emt 0:00:04]} d6 {[%emt 0:00:58]} 6. Nge2 {[%emt 0:00:06]} e6 {[%emt 0:00:08]} 7. d3 {[%emt 0:00:15]} Nge7 {[%emt 0:00:03]} 8. a3 {[%emt 0:00:16]} O-O {[%emt 0:00:53]} 9. O-O {[%emt 0:00:05][%mdl 32768] [#] Sensor Board Error (Ke4/e5)?} {Predecessor:} Nd4 $146 {A36: Symmetrical English vs ...g6: 4 Bg2 Bg7.} 10. Rb1 b6 11. e5 Nxe2+ 12. Qxe2 Rb8 13. exd6 Nf5 14. Be3 Nxe3 15. fxe3 Qxd6 16. Ne4 Qe7 17. b4 Bb7 18. b5 {½-½ (56) Maghsoodloo,P (2656)-Santos Latasa,J (2594) Leon 2019} 0-1

[Event "1st Henriquez Urena Memorial 2022"]
[Site "Santo Domingo"]
[Date "2022.09.20"]
[Round "5.5"]
[White "Polanco Nunez, Yoel Starling"]
[Black "Guzman, Christopher"]
[Result "1/2-1/2"]
[ECO "B92"]
[WhiteElo "2199"]
[BlackElo "2252"]
[Annotator "TA"]
[PlyCount "79"]
[EventDate "2022.09.16"]
[EventType "swiss"]
[EventCountry "DOM"]
[SourceTitle "playchess.com"]
[Source "ChessBase"]
[SourceQuality "1"]
[TimeControl "5400+30"]

{[%evp 15,79,25,33,-5,0,-21,27,4,56,36,58,49,71,60,78,8,31,-10,7,-10,78,14,69,13,41,29,22,0,0,0,0,13,0,0,21,19,37,0,0,0,0,0,41,55,143,116,113,98,88,74,77,77,71,76,536,448,425,417,381,75,151,147,722,722,691,155]} 1. e4 {[%emt 0:04:38]} c5 {[%emt 0:00:14]} 2. Nf3 {[%emt 0:00:05]} d6 {[%emt 0:00:09]} 3. d4 {[%emt 0:00:02]} cxd4 {[%emt 0:00:12]} 4. Nxd4 {[%emt 0:00:02]} Nf6 {[%emt 0:00:12]} 5. Nc3 {[%emt 0:00:02]} a6 {[%emt 0:00:09]} 6. Be2 {[%emt 0:00:09]} e5 {[%emt 0:00:14]} 7. Nb3 {[%emt 0:00:02]} Be6 {[%emt 0:00:22]} 8. Be3 {[%emt 0:00:14]} Nbd7 {[%emt 0:00:23]} 9. g4 {[%emt 0:01:35] B92: Sicilian Najdorf: 6 Be2.} Rc8 {[%emt 0:02:21][%cal Oc8c3]} 10. f3 {[%emt 0:00:09] [#]} Nb6 $146 {[%emt 0:10:46]} (10... Be7 {feels stronger.}) ({Predecessor:} 10... Be7 11. Qd2 Qc7 12. g5 Nh5 13. O-O-O b5 14. Kb1 Nb6 15. Nc1 O-O 16. Rhg1 g6 {½-½ (29) Avotins,M (2495)-Riccio,E (2606) ICCF email 2009}) 11. g5 {[%emt 0:01:51] White has an edge.} Nfd7 {[%emt 0:05:46]} (11... Nh5 $11) 12. Qd2 $14 {[%emt 0:02:48]} Qc7 {[%emt 0:23:41]} 13. O-O-O {[%emt 0:07:54]} d5 {[%emt 0:12:12]} 14. exd5 {[%emt 0:02:14]} Bxd5 {[%emt 0:00:12]} 15. Kb1 {[%emt 0:01:13]} (15. Nxd5 $16 Nxd5 16. c3 Nxe3 17. Qxe3) 15... Be6 $1 $11 {[%emt 0:02:02]} 16. Ne4 {[%emt 0:00:16][%cal Oc2c4]} Nd5 {[%emt 0:01:55]} 17. Bd3 {[%emt 0:06:00]} Nb4 {[%emt 0:07:02] [#]} (17... Be7 $11 {keeps the balance.}) 18. h4 {[%emt 0:04:14] Active counter play!} (18. f4 $1 $16) 18... Nxd3 {[%emt 0:06:31]} (18... Be7 $11) 19. Qxd3 {[%emt 0:00:23]} ({White should try} 19. cxd3 $14 Be7 20. Rc1) 19... Bb4 {[%emt 0:06:28]} 20. c3 {[%emt 0:02:12]} Be7 {[%emt 0:01:44]} 21. h5 {[%emt 0:01:32]} a5 {[%emt 0:04:18][%cal Ba6a5,Ba5a4][%mdl 32]} 22. g6 {[%emt 0:08:53]} fxg6 {[%emt 0:02:08]} 23. hxg6 {[%emt 0:00:13]} h6 {[%emt 0:00:13]} 24. Bg5 {[%emt 0:00:19]} a4 {[%emt 0:03:10] [#]} 25. Na5 {[%emt 0:10:18][%cal Oa5b7]} Nc5 {[%emt 0:02:15]} (25... Qb6 26. Bxe7) 26. Nxc5 {[%emt 0:00:24] Dancing on a razor blade.} Bxc5 {[%emt 0:00:07]} 27. Qb5+ {[%emt 0:01:54]} Bd7 {[%emt 0:02:43] This bishop pair is nice.} 28. Qxb7 {[%emt 0:00:30][%cal Ob7d5]} Qxb7 {[%emt 0:01:22]} (28... a3 $5 {[%cal Rd7f5]}) 29. Nxb7 {[%emt 0:00:03]} Rf8 {[%emt 0:00:33]} (29... Bf5+ $14 30. Ka1 O-O) 30. Rhe1 {[%emt 0:02:46]} Rf5 {[%emt 0:04:55]} (30... hxg5 $2 31. Rxe5+ Be7 32. Nd6+ Kd8 33. Nxc8 Kxc8 34. Rxe7 $18) 31. Bh4 {[%emt 0:06:48] Black must now prevent Rd5.} Rc7 {[%emt 0:00:40]} 32. Rd5 {[%emt 0:00:42][%csl LRc5,LRe5]} Rxb7 {[%emt 0:00:50]} 33. Rxc5 {[%emt 0:00:38] And now Rd1 would win.} Rb5 {[%emt 0:00:08]} 34. Rc7 $36 {[%emt 0:00:13][%mdl 2048] aiming for Rd1. White is on the roll.} Rxf3 $2 {[%emt 0:00:48][%mdl 8192]} (34... Rh5 $16 {is more resistant.} 35. Bg3 Rb6) 35. Rd1 {[%emt 0:00:07][%cal Oc7c8] Threatening mate with Rc8+!} Bf5+ {[%emt 0:00:03]} 36. Kc1 {[%emt 0:00:02][%csl Gh4][%cal Rd1d8]} Bd3 {[%emt 0:00:40]} 37. Rxg7 $2 {[%emt 0:00:28]} (37. Rc8+ $18 {and White stays clearly on top.} Kd7 38. Rd8+ Ke6 39. R8xd3 Rxd3 40. Rxd3) 37... e4 {[%emt 0:00:08]} (37... Kf8 $142 38. Re7 Rb6) 38. Rg1 {[%emt 0:01:27] White threatens Re7+ and mate.} Rf1+ $2 {[%emt 0:01:14][%mdl 8192]} (38... Kf8 $16 39. Ra7 Kg8) 39. Rxf1 $18 {[%emt 0:00:13]} Bxf1 {[%emt 0:00:04]} 40. Rg8+ $2 {[%emt 0:00:08] Weighted Error Value: White=0.27 (precise) /Black=0.34} (40. Re7+ $18 {is more deadly.} Kf8 41. Rf7+ Kg8 42. Rxf1) 1/2-1/2